fUSD/lending_fUSD_20241202
["ID","MTS","AMOUNT","RATE_DAILY","PERIOD"]
[343995478,1733173849267,-625.0,0.0001,2]
[343995479,1733173849277,-625.0,0.0001,2]
[343995480,1733173849287,-625.0,0.0001,2]
[343995481,1733173849299,-625.0,0.0001,2]
[343995482,1733173849309,-201.0,0.0001,2]
[343995483,1733173849320,-201.0,0.0001,2]
[343995484,1733173849329,-201.0,0.0001,2]
[343995485,1733173849339,-201.0,0.0001,2]
[343995486,1733173849348,-201.0,0.0001,2]
[343995487,1733173849358,-211.0,0.0001,2]
[343995488,1733173849367,-211.0,0.0001,2]
[343995489,1733173849377,-211.0,0.0001,2]
[343995490,1733173849387,-211.0,0.0001,2]
[343995491,1733173849399,-211.0,0.0001,2]
[343995492,1733173849408,-211.0,0.0001,2]
[343995493,1733173849418,-211.0,0.0001,2]
[343995494,1733173849428,-211.0,0.0001,2]
[343995495,1733173849437,-211.0,0.0001,2]
[343995496,1733173849447,-211.0,0.0001,2]
[343995497,1733173849456,-211.0,0.0001,2]
[343995498,1733173849466,-204.0,0.0001,2]
[343995499,1733173849476,-211.0,0.0001,2]
[343995500,1733173849486,-204.0,0.0001,2]
[343995501,1733173849496,-204.0,0.0001,2]
[343995502,1733173849506,-204.0,0.0001,2]
[343995503,1733173849516,-204.0,0.0001,2]
[343995504,1733173849527,-204.0,0.0001,2]
[343995505,1733173849537,-204.0,0.0001,2]
[343995506,1733173849549,-204.0,0.0001,2]
[343995507,1733173849559,-204.0,0.0001,2]
[343995508,1733173849569,-204.0,0.0001,2]
[343995509,1733173849579,-3000.0,0.0001,2]
[343995510,1733173849589,-1200.0,0.0001,3]
[343995511,1733173849599,-485.99768152,0.0001,2]
[343995512,1733173849609,-150.0,0.0001,2]
[343995513,1733173849620,-150.0,0.0001,2]
[343995514,1733173849629,-500.0,0.0001,2]
[343995515,1733173849639,-150.0,0.0001,2]
[343995516,1733173849649,-2075.0,0.0001,2]
[343995517,1733173849659,-500.0,0.0001,2]
[343995518,1733173849669,-2000.0,0.0001,2]
[343995519,1733173849679,-200.0,0.0001,2]
[343995520,1733173849690,-507.02,0.0001,2]
[343995521,1733173849701,-161.94590094,0.0001,2]
[343995522,1733173849711,-507.02,0.0001,2]
[343995523,1733173849721,-507.02,0.0001,2]
[343995524,1733173849731,-500.0,0.0001,2]
[343995525,1733173849741,-507.02,0.0001,2]
[343995526,1733173849752,-507.02,0.0001,2]
[343995527,1733173849762,-507.02,0.0001,2]
[343995528,1733173849771,-507.02,0.0001,2]
[343995529,1733173849781,-507.02,0.0001,2]
[343995530,1733173849790,-507.02,0.0001,2]
[343995531,1733173849800,-150.0,0.0001,2]
[343995532,1733173849809,-507.02,0.0001,2]
[343995533,1733173849819,-5781.51306738,0.0001,2]
[343995534,1733173849829,-5781.51306738,0.0001,2]
[343995535,1733173849842,-5781.51306738,0.0001,2]
[343995536,1733173849851,-46695.0,0.00010021,2]
[343995537,1733173849861,-74087.82619438,0.00010025,2]
[343995538,1733173849873,-787.68,0.00010028,2]
[343995539,1733173849883,-1001.48,0.00010046,2]
[343995540,1733173849893,-400.59,0.00010046,2]
[343995541,1733173849903,-247.65555008,0.000101,2]
[343995542,1733173849913,-2000.0,0.000101,2]
[343995543,1733173849927,-200.0,0.000101,2]
[343995544,1733173849937,-1898.0,0.000101,2]
[343995545,1733173849946,-2000.0,0.000101,2]
[343995546,1733173849957,-200.0,0.000101,2]
[343995547,1733173849967,-150.661864,0.0001016,2]
[343995548,1733173849977,-787.68,0.00010165,2]
[343995549,1733173849988,-427.90170891,0.00010186,2]
[343995550,1733173850006,-1050.0,0.000102,2]
[343995551,1733173850016,-2000.0,0.00010201,2]
[343995552,1733173850027,-200.0,0.00010201,2]
[343995553,1733173850036,-2000.0,0.00010201,2]
[343995554,1733173850046,-200.0,0.00010201,2]
[343995555,1733173850057,-250.27522531,0.00010221,2]
[343995556,1733173850067,-1600.0,0.00010228,2]
[343995557,1733173850077,-2000.0,0.00010228,2]
[343995558,1733173850086,-74087.82619438,0.0001024,2]
[343995559,1733173850097,-150.0,0.00010274,2]
[343995560,1733173850107,-151.92993544,0.00010274,2]
[343995561,1733173850116,-150.0,0.00010274,2]
[343995562,1733173850126,-589.30208318,0.00010274,2]
[343995563,1733173850135,-200.0,0.00010274,2]
[343995564,1733173850144,-500.0,0.00010274,2]
[343995565,1733173850153,-2075.0,0.00010274,2]
[343995566,1733173850163,-500.0,0.00010274,2]
[343995567,1733173850173,-500.0,0.00010274,2]
[343995568,1733173850183,-265.48162957,0.00010274,2]
[343995569,1733173850193,-1000.0,0.00010278,2]
[343995570,1733173850204,-787.68,0.00010302,2]
[343995571,1733173850214,-2000.0,0.00010303,2]
[343995572,1733173850224,-200.0,0.00010303,2]
[343995573,1733173850235,-2000.0,0.00010303,2]
[343995574,1733173850246,-200.0,0.00010303,2]
[343995575,1733173850256,-8458.66,0.00010382,2]
[343995576,1733173850266,-2000.0,0.00010406,2]
[343995577,1733173850276,-200.0,0.00010406,2]
[343995578,1733173850286,-2000.0,0.00010406,2]
[343995579,1733173850296,-200.0,0.00010406,2]
[343995580,1733173850309,-787.68,0.00010439,2]
[343995581,1733173850319,-74087.82619438,0.00010456,2]
[343995582,1733173850329,-1001.48,0.00010502,2]
[343995583,1733173850338,-400.59,0.00010502,2]
[343995584,1733173850348,-427.71,0.00010528,2]
[343995585,1733173850358,-150.0,0.00010548,2]
[343995586,1733173850368,-167.99355586,0.00010548,2]
[343995587,1733173850377,-500.0,0.00010548,2]
[343995588,1733173850387,-2075.0,0.00010548,2]
[343995589,1733173850396,-500.0,0.00010548,2]
[343995590,1733173850406,-691.50690942,0.00010548,2]
[343995591,1733173850415,-787.68,0.00010576,2]
[343995592,1733173850425,-1600.0,0.00010593,2]
[343995593,1733173850434,-2000.0,0.00010593,2]
[343995594,1733173850443,-736.0,0.00010633,2]
[343995595,1733173850453,-74087.82619438,0.00010671,2]
[343995596,1733173850463,-796.0,0.00010673,2]
[343995597,1733173850472,-427.90170891,0.00010676,2]
[343995598,1733173850482,-255.63607856,0.000107,2]
[343995599,1733173850491,-787.68,0.00010713,2]
[343995600,1733173850502,-427.90170891,0.00010779,2]
[343995601,1733173850512,-979.16385468,0.000108,2]
[343995602,1733173850521,-150.0,0.00010822,2]
[343995603,1733173850530,-500.0,0.00010822,2]
[343995604,1733173850540,-2075.0,0.00010822,2]
[343995605,1733173850551,-500.0,0.00010822,2]
[343995606,1733173850560,-787.76118233,0.0001085,2]
[343995607,1733173850569,-10000.0,0.0001088,2]
[343995608,1733173850579,-74087.82619438,0.00010886,2]
[343995609,1733173850590,-2000.0,0.00010899,2]
[343995610,1733173850600,-7263.48164044,0.000109,2]
[343995611,1733173850610,-7263.48164038,0.000109,2]
[343995612,1733173850620,-7263.48164038,0.000109,2]
[343995613,1733173850630,-7263.48164038,0.000109,2]
[343995614,1733173850639,-7263.48164038,0.000109,2]
[343995615,1733173850649,-7263.48164038,0.000109,2]
[343995616,1733173850658,-7263.48164038,0.000109,2]
[343995617,1733173850668,-7263.48164038,0.000109,2]
[343995618,1733173850677,-1600.0,0.00010958,2]
[343995619,1733173850686,-2000.0,0.00010958,2]
[343995620,1733173850696,-200.0,0.00010959,2]
[343995621,1733173850706,-200.0,0.00010959,2]
[343995622,1733173850716,-200.0,0.00010959,2]
[343995623,1733173850725,-200.0,0.00010959,2]
[343995624,1733173850735,-200.0,0.00010959,2]
[343995625,1733173850744,-150.0,0.00010959,2]
[343995626,1733173850754,-5611.92,0.00010959,2]
[343995627,1733173850764,-197.45,0.00010959,2]
[343995628,1733173850773,-863.8,0.00010959,2]
[343995629,1733173850783,-719.83,0.00010959,2]
[343995630,1733173850792,-599.86,0.00010959,2]
[343995631,1733173850804,-499.88,0.00010959,2]
[343995632,1733173850814,-416.57,0.00010959,2]
[343995633,1733173850823,-347.14,0.00010959,2]
[343995634,1733173850833,-289.28,0.00010959,2]
[343995635,1733173850848,-241.07,0.00010959,2]
[343995636,1733173850860,-200.89,0.00010959,2]
[343995637,1733173850875,-167.41,0.00010959,2]
[343995638,1733173850886,-837.08,0.00010959,2]
[343995639,1733173850895,-2819.21,0.00010959,2]
[343995640,1733173850904,-813.51,0.00010959,2]
[343995641,1733173850914,-1001.48,0.00010959,2]
[343995642,1733173850925,-400.59,0.00010959,2]
[343995643,1733173850935,-93440.78976498,0.00010995,2]
[343995644,1733173850945,-80613.0,0.00011,3]
[343995645,1733173850955,-278.57047874,0.00011096,2]
[343995646,1733173850964,-500.0,0.00011096,2]
[343995647,1733173850976,-2075.0,0.00011096,2]
[343995648,1733173850986,-500.0,0.00011096,2]
[343995649,1733173850996,-74087.82619438,0.00011101,2]
[343995650,1733173851006,-5000.0,0.00011121,2]
[343995651,1733173851017,-427.90170891,0.00011155,2]
[343995652,1733173851027,-29999.99,0.00011281,2]
[343995653,1733173851036,-29999.99,0.00011281,2]
[343995654,1733173851046,-1122.69,0.00011281,2]
[343995655,1733173851058,-9999.99,0.00011281,2]
[343995656,1733173851068,-427.90170891,0.00011284,2]
[343995657,1733173851078,-1000.0,0.00011305,2]
[343995658,1733173851087,-74087.82619438,0.00011316,2]
[343995659,1733173851096,-1600.0,0.00011323,2]
[343995660,1733173851106,-2000.0,0.00011323,2]
[343995661,1733173851116,-4691.34975945,0.0001135,2]
[343995662,1733173851131,-500.0,0.0001137,2]
[343995663,1733173851141,-2075.0,0.0001137,2]
[343995664,1733173851151,-500.0,0.0001137,2]
[343995665,1733173851161,-1001.48,0.00011416,2]
[343995666,1733173851170,-400.59,0.00011416,2]
[343995667,1733173851180,-24103.37,0.00011507,2]
[343995668,1733173851190,-2751.0,0.00011507,2]
[343995669,1733173851199,-2819.21,0.00011507,2]
[343995670,1733173851209,-500.0,0.00011562,2]
[343995671,1733173851218,-600.0,0.000116,2]
[343995672,1733173851228,-850.76380518,0.00011644,2]
[343995673,1733173851238,-2075.0,0.00011644,2]
[343995674,1733173851247,-500.0,0.00011644,2]
[343995675,1733173851257,-1252.0,0.00011696,2]
[343995676,1733173851268,-31601.974832,0.000117,2]
[343995677,1733173851278,-1001.48,0.00011872,2]
[343995678,1733173851288,-400.59,0.00011872,2]
[343995679,1733173851300,-2000.0,0.00011887,2]
[343995680,1733173851310,-15486.49958263,0.00011888,2]
[343995681,1733173851321,-1200.0,0.000119,4]
[343995682,1733173851330,-725.46260256,0.000119,2]
[343995683,1733173851339,-2075.0,0.00011918,2]
[343995684,1733173851349,-500.0,0.00011918,2]
[343995685,1733173851358,-1290.90320385,0.00011989,20]
[343995686,1733173851367,-5002.47,0.00012,2]
[343995687,1733173851376,-20006.28400681,0.00012,2]
[343995688,1733173851385,-10000.0,0.00012,2]
[343995689,1733173851394,-20000.0,0.00012,2]
[343995690,1733173851404,-200.0,0.00012055,2]
[343995691,1733173851413,-2819.21,0.00012055,2]
[343995692,1733173851424,-228.69,0.000121,2]
[343995693,1733173851433,-2075.0,0.00012192,2]
[343995694,1733173851443,-794.40183439,0.00012192,2]
[343995695,1733173851453,-151.0,0.00012329,2]
[343995696,1733173851462,-151.0,0.00012329,2]
[343995697,1733173851472,-212.145489,0.00012329,2]
[343995698,1733173851482,-151.0,0.00012329,2]
[343995699,1733173851492,-151.0,0.00012329,2]
[343995700,1733173851501,-151.0,0.00012329,2]
[343995701,1733173851511,-151.0,0.00012329,2]
[343995702,1733173851521,-151.0,0.00012329,2]
[343995703,1733173851530,-151.0,0.00012329,2]
[343995704,1733173851540,-151.0,0.00012329,2]
[343995705,1733173851552,-151.0,0.00012329,2]
[343995706,1733173851564,-151.0,0.00012329,2]
[343995707,1733173851574,-292.464402,0.00012329,2]
[343995708,1733173851585,-272.701676,0.00012329,2]
[343995709,1733173851595,-272.701676,0.00012329,2]
[343995710,1733173851605,-272.701676,0.00012329,2]
[343995711,1733173851615,-272.701676,0.00012329,2]
[343995712,1733173851625,-272.701676,0.00012329,2]
[343995713,1733173851634,-272.701676,0.00012329,2]
[343995714,1733173851643,-272.701676,0.00012329,2]
[343995715,1733173851653,-272.701676,0.00012329,2]
[343995716,1733173851662,-272.701676,0.00012329,2]
[343995717,1733173851672,-272.701676,0.00012329,2]
[343995718,1733173851682,-272.701676,0.00012329,2]
[343995719,1733173851692,-272.701676,0.00012329,2]
[343995720,1733173851702,-272.701676,0.00012329,2]
[343995721,1733173851711,-272.701676,0.00012329,2]
[343995722,1733173851721,-272.701676,0.00012329,2]
[343995723,1733173851731,-272.701676,0.00012329,2]
[343995724,1733173851741,-272.701676,0.00012329,2]
[343995725,1733173851750,-272.701676,0.00012329,2]
[343995726,1733173851760,-272.701676,0.00012329,2]
[343995727,1733173851771,-272.701678,0.00012329,2]
[343995728,1733173851786,-500.0,0.00012329,2]
[343995729,1733173851796,-500.0,0.00012329,2]
[343995730,1733173851807,-500.0,0.00012329,2]
[343995731,1733173851818,-500.0,0.00012329,2]
[343995732,1733173851839,-500.0,0.00012329,2]
[343995733,1733173851849,-500.0,0.00012329,2]
[343995734,1733173851859,-500.0,0.00012329,2]
[343995735,1733173851874,-500.0,0.00012329,2]
[343995736,1733173851885,-500.0,0.00012329,2]
[343995737,1733173851895,-500.0,0.00012329,2]
[343995738,1733173851904,-500.0,0.00012329,2]
[343995739,1733173851914,-500.0,0.00012329,2]
[343995740,1733173851924,-500.0,0.00012329,2]
[343995741,1733173851935,-500.0,0.00012329,2]
[343995742,1733173851945,-500.0,0.00012329,2]
[343995743,1733173851955,-500.0,0.00012329,2]
[343995744,1733173851964,-500.0,0.00012329,2]
[343995745,1733173851973,-500.0,0.00012329,2]
[343995746,1733173851983,-500.0,0.00012329,2]
[343995747,1733173851993,-500.0,0.00012329,2]
[343995748,1733173852002,-215.729793,0.00012329,2]
[343995749,1733173852011,-215.729793,0.00012329,2]
[343995750,1733173852021,-215.729793,0.00012329,2]
[343995751,1733173852032,-215.729793,0.00012329,2]
[343995752,1733173852042,-215.729793,0.00012329,2]
[343995753,1733173852053,-215.729793,0.00012329,2]
[343995754,1733173852062,-215.729793,0.00012329,2]
[343995755,1733173852071,-215.729793,0.00012329,2]
[343995756,1733173852081,-215.729793,0.00012329,2]
[343995757,1733173852092,-215.729793,0.00012329,2]
[343995758,1733173852102,-215.729793,0.00012329,2]
[343995759,1733173852111,-215.729793,0.00012329,2]
[343995760,1733173852120,-215.729793,0.00012329,2]
[343995761,1733173852129,-215.729793,0.00012329,2]
[343995762,1733173852139,-215.729793,0.00012329,2]
[343995763,1733173852149,-215.729793,0.00012329,2]
[343995764,1733173852158,-215.729793,0.00012329,2]
[343995765,1733173852168,-215.729793,0.00012329,2]
[343995766,1733173852178,-215.729793,0.00012329,2]
[343995767,1733173852187,-215.729788,0.00012329,2]
[343995768,1733173852197,-151.0,0.00012329,2]
[343995769,1733173852207,-151.0,0.00012329,2]
[343995770,1733173852216,-151.0,0.00012329,2]
[343995771,1733173852226,-151.0,0.00012329,2]
[343995772,1733173852237,-151.0,0.00012329,2]
[343995773,1733173852247,-151.0,0.00012329,2]
[343995774,1733173852257,-151.0,0.00012329,2]
[343995775,1733173852599,-151.0,0.00012329,2]
[343995776,1733173852651,-151.0,0.00012329,2]
[343995777,1733173852662,-151.0,0.00012329,2]
[343995778,1733173852672,-151.0,0.00012329,2]
[343995779,1733173852682,-195.457395,0.00012329,2]
[343995780,1733173852693,-164.179033,0.00012329,2]
[343995781,1733173852703,-355.792124,0.00012329,2]
[343995782,1733173852714,-355.792124,0.00012329,2]
[343995783,1733173852725,-355.792124,0.00012329,2]
[343995784,1733173852736,-355.792124,0.00012329,2]
[343995785,1733173852746,-355.792124,0.00012329,2]
[343995786,1733173852756,-355.792124,0.00012329,2]
[343995787,1733173852773,-355.792124,0.00012329,2]
[343995788,1733173852784,-355.792124,0.00012329,2]
[343995789,1733173852794,-355.792121,0.00012329,2]
[343995790,1733173852807,-422.622878,0.00012329,2]
[343995791,1733173852817,-422.622878,0.00012329,2]
[343995792,1733173852827,-422.622878,0.00012329,2]
[343995793,1733173852839,-422.622878,0.00012329,2]
[343995794,1733173852853,-422.622878,0.00012329,2]
[343995795,1733173852863,-422.622878,0.00012329,2]
[343995796,1733173852873,-422.622878,0.00012329,2]
[343995797,1733173852884,-422.622878,0.00012329,2]
[343995798,1733173852894,-422.622878,0.00012329,2]
[343995799,1733173852904,-422.622878,0.00012329,2]
[343995800,1733173852914,-422.622878,0.00012329,2]
[343995801,1733173852924,-422.622878,0.00012329,2]
[343995802,1733173852934,-422.622878,0.00012329,2]
[343995803,1733173852944,-422.622878,0.00012329,2]
[343995804,1733173852954,-422.622878,0.00012329,2]
[343995805,1733173852965,-422.622878,0.00012329,2]
[343995806,1733173852974,-422.622878,0.00012329,2]
[343995807,1733173852984,-422.622878,0.00012329,2]
[343995808,1733173852995,-422.622878,0.00012329,2]
[343995809,1733173853005,-422.622868,0.00012329,2]
[343995810,1733173853015,-181.507832,0.00012329,2]
[343995811,1733173853025,-181.507832,0.00012329,2]
[343995812,1733173853035,-181.507832,0.00012329,2]
[343995813,1733173853045,-181.507832,0.00012329,2]
[343995814,1733173853058,-181.507832,0.00012329,2]
[343995815,1733173853067,-181.507832,0.00012329,2]
[343995816,1733173853077,-181.507832,0.00012329,2]
[343995817,1733173853088,-181.507832,0.00012329,2]
[343995818,1733173853098,-181.507832,0.00012329,2]
[343995819,1733173853108,-181.507832,0.00012329,2]
[343995820,1733173853118,-181.507832,0.00012329,2]
[343995821,1733173853128,-181.507832,0.00012329,2]
[343995822,1733173853138,-181.507832,0.00012329,2]
[343995823,1733173853148,-181.507832,0.00012329,2]
[343995824,1733173853158,-181.507832,0.00012329,2]
[343995825,1733173853168,-181.507832,0.00012329,2]
[343995826,1733173853177,-181.507832,0.00012329,2]
[343995827,1733173853187,-181.507832,0.00012329,2]
[343995828,1733173853197,-181.507832,0.00012329,2]
[343995829,1733173853207,-181.507842,0.00012329,2]
[343995830,1733173853218,-236.580911,0.00012329,2]
[343995831,1733173853229,-236.580911,0.00012329,2]
[343995832,1733173853239,-236.580911,0.00012329,2]
[343995833,1733173853250,-236.580903,0.00012329,2]
[343995834,1733173853260,-151.0,0.00012329,2]
[343995835,1733173853270,-151.0,0.00012329,2]
[343995836,1733173853279,-151.0,0.00012329,2]
[343995837,1733173853289,-151.0,0.00012329,2]
[343995838,1733173853300,-151.0,0.00012329,2]
[343995839,1733173853310,-151.0,0.00012329,2]
[343995840,1733173853320,-151.0,0.00012329,2]
[343995841,1733173853330,-151.0,0.00012329,2]
[343995842,1733173853340,-225.975748,0.00012329,2]
[343995843,1733173853350,-151.0,0.00012329,2]
[343995844,1733173853365,-151.369186,0.00012329,2]
[343995845,1733173853378,-151.0,0.00012329,2]
[343995846,1733173853389,-151.0,0.00012329,2]
[343995847,1733173853399,-151.0,0.00012329,2]
[343995848,1733173853410,-151.0,0.00012329,2]
[343995849,1733173853420,-151.0,0.00012329,2]
[343995850,1733173853430,-151.0,0.00012329,2]
[343995851,1733173853440,-151.0,0.00012329,2]
[343995852,1733173853451,-151.0,0.00012329,2]
[343995853,1733173853461,-151.0,0.00012329,2]
[343995854,1733173853472,-151.0,0.00012329,2]
[343995855,1733173853483,-151.0,0.00012329,2]
[343995856,1733173853493,-227.408568,0.00012329,2]
[343995857,1733173853504,-151.0,0.00012329,2]
[343995858,1733173853514,-151.0,0.00012329,2]
[343995859,1733173853524,-151.0,0.00012329,2]
[343995860,1733173853536,-151.0,0.00012329,2]
[343995861,1733173853546,-151.0,0.00012329,2]
[343995862,1733173853559,-151.0,0.00012329,2]
[343995863,1733173853570,-151.0,0.00012329,2]
[343995864,1733173853580,-151.0,0.00012329,2]
[343995865,1733173853590,-151.0,0.00012329,2]
[343995866,1733173853601,-151.0,0.00012329,2]
[343995867,1733173853612,-151.0,0.00012329,2]
[343995868,1733173853622,-151.0,0.00012329,2]
[343995869,1733173853632,-238.032863,0.00012329,2]
[343995870,1733173853642,-151.0,0.00012329,2]
[343995871,1733173853652,-151.0,0.00012329,2]
[343995872,1733173853662,-151.0,0.00012329,2]
[343995873,1733173853672,-151.0,0.00012329,2]
[343995874,1733173853682,-151.0,0.00012329,2]
[343995875,1733173853692,-151.0,0.00012329,2]
[343995876,1733173853702,-166.763966,0.00012329,2]
[343995877,1733173853711,-166.203279,0.00012329,2]
[343995878,1733173853722,-166.203279,0.00012329,2]
[343995879,1733173853732,-166.203279,0.00012329,2]
[343995880,1733173853742,-166.203279,0.00012329,2]
[343995881,1733173853752,-166.203279,0.00012329,2]
[343995882,1733173853762,-166.203279,0.00012329,2]
[343995883,1733173853772,-166.203279,0.00012329,2]
[343995884,1733173853782,-166.203279,0.00012329,2]
[343995885,1733173853792,-166.203279,0.00012329,2]
[343995886,1733173853803,-166.203279,0.00012329,2]
[343995887,1733173853814,-166.203279,0.00012329,2]
[343995888,1733173853823,-166.203279,0.00012329,2]
[343995889,1733173853833,-166.203279,0.00012329,2]
[343995890,1733173853848,-166.203279,0.00012329,2]
[343995891,1733173853858,-166.203279,0.00012329,2]
[343995892,1733173853869,-166.203279,0.00012329,2]
[343995893,1733173853880,-166.203279,0.00012329,2]
[343995894,1733173853891,-166.203279,0.00012329,2]
[343995895,1733173853900,-166.203279,0.00012329,2]
[343995896,1733173853909,-166.203273,0.00012329,2]
[343995897,1733173853919,-160.494099,0.00012329,2]
[343995898,1733173853929,-160.494099,0.00012329,2]
[343995899,1733173853939,-160.494099,0.00012329,2]
[343995900,1733173853950,-160.494099,0.00012329,2]
[343995901,1733173853960,-160.494099,0.00012329,2]
[343995902,1733173853969,-160.494099,0.00012329,2]
[343995903,1733173853980,-160.494099,0.00012329,2]
[343995904,1733173853990,-160.494099,0.00012329,2]
[343995905,1733173854000,-160.494099,0.00012329,2]
[343995906,1733173854010,-160.494099,0.00012329,2]
[343995907,1733173854020,-160.494099,0.00012329,2]
[343995908,1733173854030,-160.494099,0.00012329,2]
[343995909,1733173854040,-160.494099,0.00012329,2]
[343995910,1733173854051,-160.494099,0.00012329,2]
[343995911,1733173854061,-160.494099,0.00012329,2]
[343995912,1733173854071,-160.494099,0.00012329,2]
[343995913,1733173854081,-160.494099,0.00012329,2]
[343995914,1733173854091,-160.494099,0.00012329,2]
[343995915,1733173854101,-160.494099,0.00012329,2]
[343995916,1733173854111,-160.494104,0.00012329,2]
[343995917,1733173854121,-442.207917,0.00012329,2]
[343995918,1733173854130,-442.207917,0.00012329,2]
[343995919,1733173854140,-442.207917,0.00012329,2]
[343995920,1733173854150,-442.207917,0.00012329,2]
[343995921,1733173854160,-442.207917,0.00012329,2]
[343995922,1733173854170,-442.207917,0.00012329,2]
[343995923,1733173854180,-442.207917,0.00012329,2]
[343995924,1733173854190,-442.207917,0.00012329,2]
[343995925,1733173854200,-442.207917,0.00012329,2]
[343995926,1733173854210,-442.207917,0.00012329,2]
[343995927,1733173854219,-442.207917,0.00012329,2]
[343995928,1733173854229,-442.207917,0.00012329,2]
[343995929,1733173854239,-442.207917,0.00012329,2]
[343995930,1733173854253,-442.207917,0.00012329,2]
[343995931,1733173854262,-442.207917,0.00012329,2]
[343995932,1733173854272,-442.207917,0.00012329,2]
[343995933,1733173854283,-442.207917,0.00012329,2]
[343995934,1733173854293,-442.207917,0.00012329,2]
[343995935,1733173854305,-442.207917,0.00012329,2]
[343995936,1733173854315,-442.207921,0.00012329,2]
[343995937,1733173854326,-151.0,0.00012329,2]
[343995938,1733173854335,-151.0,0.00012329,2]
[343995939,1733173854346,-151.0,0.00012329,2]
[343995940,1733173854356,-151.0,0.00012329,2]
[343995941,1733173854366,-151.0,0.00012329,2]
[343995942,1733173854375,-151.0,0.00012329,2]
[343995943,1733173854385,-151.0,0.00012329,2]
[343995944,1733173854395,-151.0,0.00012329,2]
[343995945,1733173854404,-151.0,0.00012329,2]
[343995946,1733173854413,-151.0,0.00012329,2]
[343995947,1733173854422,-151.0,0.00012329,2]
[343995948,1733173854431,-151.0,0.00012329,2]
[343995949,1733173854440,-151.0,0.00012329,2]
[343995950,1733173854450,-278.000265,0.00012329,2]
[343995951,1733173854460,-291.026642,0.00012329,2]
[343995952,1733173854470,-291.026642,0.00012329,2]
[343995953,1733173854479,-291.026642,0.00012329,2]
[343995954,1733173854490,-291.026642,0.00012329,2]
[343995955,1733173854500,-291.026642,0.00012329,2]
[343995956,1733173854510,-291.026642,0.00012329,2]
[343995957,1733173854520,-291.026642,0.00012329,2]
[343995958,1733173854530,-291.026642,0.00012329,2]
[343995959,1733173854540,-291.026642,0.00012329,2]
[343995960,1733173854551,-291.026642,0.00012329,2]
[343995961,1733173854561,-291.026642,0.00012329,2]
[343995962,1733173854570,-291.026642,0.00012329,2]
[343995963,1733173854580,-291.026642,0.00012329,2]
[343995964,1733173854590,-291.026642,0.00012329,2]
[343995965,1733173854600,-291.026642,0.00012329,2]
[343995966,1733173854610,-291.026642,0.00012329,2]
[343995967,1733173854620,-291.026642,0.00012329,2]
[343995968,1733173854629,-291.026642,0.00012329,2]
[343995969,1733173854639,-291.026642,0.00012329,2]
[343995970,1733173854649,-291.026646,0.00012329,2]
[343995971,1733173854659,-381.064102,0.00012329,2]
[343995972,1733173854668,-381.064102,0.00012329,2]
[343995973,1733173854678,-381.064102,0.00012329,2]
[343995974,1733173854688,-381.064102,0.00012329,2]
[343995975,1733173854698,-381.064102,0.00012329,2]
[343995976,1733173854707,-381.064102,0.00012329,2]
[343995977,1733173854717,-381.064102,0.00012329,2]